bitfinex-derivatives/quotes_BTCF0:USTF0_20250720
["timestamp","ask_amount","ask_price","bid_price","bid_amount"]
[1753032055624,0.53651,118520.0,118510.0,2.33521045]
[1753032056621,0.41162,118520.0,118510.0,2.33521045]
[1753032057217,0.221,118520.0,118510.0,2.55076328]
[1753032057928,0.33594,118520.0,118510.0,2.55076328]
[1753032058325,0.221,118520.0,118510.0,2.55076328]
[1753032058926,0.221,118520.0,118510.0,2.84236328]
[1753032059130,0.3844,118520.0,118510.0,2.62681045]
[1753032059332,0.40938,118520.0,118510.0,2.62681045]
[1753032059830,0.51947,118520.0,118510.0,2.62645045]
[1753032060226,0.53185,118520.0,118510.0,2.01865045]
[1753032060431,0.53185,118520.0,118510.0,2.62637045]
[1753032060632,0.53185,118520.0,118510.0,2.01865045]
[1753032060831,0.53185,118520.0,118510.0,2.62633045]
[1753032061929,0.53185,118520.0,118510.0,2.01865045]
[1753032062131,0.53185,118520.0,118510.0,2.61606045]
[1753032062328,0.53185,118520.0,118510.0,2.40050762]
[1753032062636,0.53185,118520.0,118510.0,2.62629045]
[1753032063533,0.53185,118520.0,118510.0,2.41073762]
[1753032063737,0.53185,118520.0,118510.0,2.01865045]
[1753032063939,0.53185,118520.0,118510.0,2.41069762]
[1753032064138,0.53185,118520.0,118510.0,2.62625045]
[1753032064938,0.53185,118520.0,118510.0,2.33465045]
[1753032065138,0.53185,118520.0,118510.0,2.34966436]
[1753032070238,0.53185,118520.0,118510.0,2.13411153]
[1753032070436,0.53185,118520.0,118510.0,2.34966436]
[1753032070636,0.53185,118520.0,118510.0,1.74206436]
[1753032070837,0.53185,118520.0,118510.0,2.34922436]
[1753032071141,0.53185,118520.0,118510.0,2.34722436]
[1753032071442,0.53185,118520.0,118510.0,2.33699436]
[1753032071841,0.7005251,118520.0,118510.0,2.33699436]
[1753032072042,0.53185,118520.0,118510.0,2.34522436]
[1753032073141,0.7005251,118520.0,118510.0,2.34522436]
[1753032073340,0.53185,118520.0,118510.0,2.34522436]
[1753032074042,0.7005251,118520.0,118510.0,2.34522436]
[1753032074541,0.7005251,118520.0,118510.0,2.12967153]
[1753032074742,0.7005251,118520.0,118510.0,2.34522436]
[1753032076047,0.53185,118520.0,118510.0,2.34522436]
[1753032076542,0.7005251,118520.0,118510.0,2.34522436]
[1753032076935,0.7005251,118520.0,118510.0,1.51428153]
[1753032077140,0.7005251,118520.0,118510.0,2.01659436]
[1753032077443,0.7005251,118520.0,118510.0,1.81104153]
[1753032077643,0.7005251,118520.0,118510.0,2.02659436]
[1753032078842,0.7005251,118520.0,118510.0,1.41983436]
[1753032079047,0.7005251,118520.0,118510.0,1.79671153]
[1753032079347,0.7005251,118520.0,118510.0,1.78671153]
[1753032079847,0.7005251,118520.0,118510.0,1.3653574]
[1753032080243,0.7005251,118520.0,118510.0,1.24223254]
[1753032080448,0.7005251,118520.0,118510.0,1.22523294]
[1753032080642,0.7005251,118520.0,118510.0,1.25559858]
[1753032081047,0.8692771,118520.0,118510.0,1.25559858]
[1753032081246,0.8692771,118520.0,118510.0,1.21003464]
[1753032081447,1.08482993,118520.0,118510.0,1.21003464]
[1753032081647,0.8692771,118520.0,118510.0,0.84923464]
[1753032082044,0.8692771,118520.0,118510.0,0.8720018]
[1753032082244,0.8692771,118520.0,118510.0,0.84163616]
[1753032082944,0.8692771,118520.0,118510.0,1.01032516]
[1753032083943,1.2300771,118520.0,118510.0,0.84163616]
[1753032084850,0.8692771,118520.0,118510.0,1.01032526]
[1753032085051,0.8692771,118520.0,118510.0,0.84163616]
[1753032085552,0.7364771,118520.0,118510.0,0.84163616]
[1753032086753,0.5677251,118520.0,118510.0,0.818869]
[1753032088557,0.5677251,118520.0,118510.0,0.9875581]
[1753032093955,0.5677251,118520.0,118510.0,1.3483581]
[1753032095760,0.5677251,118520.0,118510.0,1.56391093]
[1753032095961,0.5677251,118520.0,118510.0,1.03442183]
[1753032096761,0.5677251,118520.0,118510.0,0.987558]
[1753032096963,0.5677251,118520.0,118510.0,0.818869]
[1753032097163,0.78327793,118520.0,118510.0,0.818869]
[1753032097357,0.5677251,118520.0,118510.0,0.987558]
[1753032099059,0.5677251,118520.0,118510.0,0.818869]
[1753032099259,0.5677251,118520.0,118510.0,0.987558]
[1753032100868,0.5677251,118520.0,118510.0,0.818869]
[1753032101269,0.72929174,118520.0,118510.0,0.98043564]
[1753032101571,0.72929174,118520.0,118510.0,1.14912464]
[1753032102372,0.72929174,118520.0,118510.0,0.987558]
[1753032102565,0.72929174,118520.0,118510.0,1.14912464]
[1753032102766,0.72929174,118520.0,118510.0,0.98043564]
[1753032104074,0.72929174,118520.0,118510.0,1.14912464]
[1753032105364,0.72929174,118520.0,118510.0,1.000728]
[1753032105560,0.72929174,118520.0,118510.0,0.99360564]
[1753032105960,0.72929174,118520.0,118510.0,1.16229464]
[1753032106172,0.72929174,118520.0,118510.0,1.000728]
[1753032106472,0.72929174,118520.0,118510.0,0.99360564]
[1753032106772,0.72929174,118520.0,118510.0,1.16229474]
[1753032108771,0.72929174,118520.0,118510.0,1.0007281]
[1753032109073,0.72929174,118520.0,118510.0,1.16229474]
[1753032111474,0.72929174,118520.0,118510.0,1.02848564]
[1753032113278,0.95688748,118520.0,118510.0,0.817269]
[1753032113782,1.31768748,118520.0,118510.0,0.817269]
[1753032114076,0.95688748,118520.0,118510.0,0.817269]
[1753032114278,1.25165838,118520.0,118510.0,0.814269]
[1753032114475,1.31314314,118520.0,118510.0,0.817269]
[1753032114788,0.89185838,118520.0,118510.0,0.817269]
[1753032115082,0.89285838,118520.0,118510.0,0.83903616]
[1753032115781,0.89385838,118520.0,118510.0,0.83903616]
[1753032116081,0.5707251,118520.0,118510.0,0.83903616]
[1753032116282,1.25465838,118520.0,118510.0,0.83903616]
[1753032116478,0.89385838,118520.0,118510.0,0.83903616]
[1753032118181,0.89385838,118520.0,118510.0,0.83906125]
[1753032119376,1.25465838,118520.0,118510.0,0.83906125]
[1753032119785,0.89385838,118520.0,118510.0,0.83906125]
[1753032121187,0.5707251,118520.0,118510.0,0.83906125]
[1753032121381,0.5707251,118520.0,118510.0,0.97783564]
[1753032121587,0.73229174,118520.0,118510.0,1.04867747]
[1753032122789,0.79872294,118520.0,118510.0,1.04867747]
[1753032123186,0.79872294,118520.0,118510.0,0.88711083]
[1753032123486,0.79872294,118520.0,118510.0,1.04867747]
[1753032123786,0.73229174,118520.0,118510.0,1.57816537]
[1753032124092,0.73229174,118520.0,118510.0,1.60819537]
[1753032124284,0.73229174,118520.0,118510.0,1.59996537]
[1753032124589,0.73229174,118520.0,118510.0,1.60853111]
[1753032124990,0.73229174,118520.0,118510.0,1.57816547]
[1753032126792,0.73229174,118520.0,118510.0,0.88711083]
[1753032126990,0.73229174,118520.0,118510.0,1.04867747]
[1753032127191,0.73229174,118520.0,118510.0,1.40947747]
[1753032127493,0.73229174,118520.0,118510.0,1.04867747]
[1753032127692,0.89385838,118520.0,118510.0,0.88711083]
[1753032127894,0.73229174,118520.0,118510.0,1.04867747]
[1753032129492,0.5707251,118520.0,118510.0,1.04867747]
[1753032129694,0.73229174,118520.0,118510.0,1.04867747]
[1753032131795,0.89385838,118520.0,118510.0,1.04867747]
[1753032132596,0.5707251,118520.0,118510.0,1.04867747]
[1753032132894,0.89385838,118520.0,118510.0,1.04867747]
[1753032133397,0.73229174,118520.0,118510.0,1.04867747]
[1753032135900,0.73229174,118520.0,118510.0,1.21736537]
[1753032136992,0.73229174,118520.0,118510.0,1.04867747]
[1753032140096,0.73229174,118520.0,118510.0,0.88711083]
[1753032140299,0.73229174,118520.0,118510.0,1.04867747]
[1753032141197,0.73229174,118520.0,118510.0,0.88711083]
[1753032141398,0.73229174,118520.0,118510.0,1.04867747]
[1753032141903,0.73229174,118520.0,118510.0,0.88711083]
[1753032142197,0.73229174,118520.0,118510.0,1.04867747]
[1753032143195,1.25465838,118520.0,118510.0,0.88711083]
[1753032144000,1.25465838,118520.0,118510.0,1.04867747]
[1753032144400,1.25465838,118520.0,118510.0,0.88711083]
[1753032144895,0.9315251,118520.0,118510.0,0.88711083]
[1753032145100,1.25465838,118520.0,118510.0,1.04867747]
[1753032145899,1.25465838,118520.0,118510.0,0.23406083]
[1753032146405,1.25465838,118520.0,118510.0,0.83726083]
[1753032146705,1.25465838,118520.0,118510.0,0.85043083]
[1753032146999,0.9315251,118520.0,118510.0,0.88531083]
[1753032147202,1.25465838,118520.0,118510.0,0.88531083]
[1753032148501,1.25465838,118520.0,118510.0,0.88504054]
[1753032151003,1.32317235,118520.0,118510.0,0.88504054]
[1753032151601,1.32317235,118520.0,118510.0,0.88503776]
[1753032152304,0.96237235,118520.0,118510.0,0.88503776]
[1753032155106,1.32317235,118520.0,118510.0,0.86224871]
[1753032158813,1.00003907,118520.0,118510.0,0.86224871]
[1753032159108,0.96237235,118520.0,118510.0,1.02381535]
[1753032159407,0.80080571,118520.0,118510.0,1.02381535]
[1753032159612,0.5707251,118520.0,118510.0,1.22253315]
[1753032159812,0.4482551,118520.0,118510.0,1.38409979]
[1753032160407,0.4482551,118520.0,118510.0,1.22253315]
[1753032163013,0.4482551,118520.0,118510.0,1.06096651]
[1753032163312,0.4482551,118520.0,118510.0,1.22253315]
[1753032164104,0.4232751,118520.0,118510.0,1.38409979]
[1753032164304,0.4232751,118520.0,118510.0,1.74489979]
[1753032165013,0.4481151,118520.0,118510.0,1.77526543]
[1753032165404,0.4481151,118520.0,118510.0,1.61369879]
[1753032167214,0.4481151,118520.0,118510.0,1.01049879]
[1753032167414,0.4481151,118520.0,118510.0,1.46658672]
[1753032167715,0.4481151,118520.0,118510.0,1.63527452]
[1753032168312,0.4481151,118520.0,118510.0,1.61249879]
[1753032169515,0.4481151,118520.0,118510.0,1.63527106]
[1753032169716,0.4810851,118520.0,118510.0,1.63511106]
[1753032170319,0.4232751,118520.0,118510.0,1.63511106]
[1753032170520,0.4232751,118520.0,118510.0,1.61233879]
[1753032170819,0.4232751,118520.0,118510.0,1.63510967]
[1753032171117,0.4481151,118520.0,118510.0,1.61233879]
[1753032171324,0.4481151,118520.0,118510.0,1.6351086]
[1753032171515,0.4481151,118520.0,118510.0,1.63510823]
[1753032172415,0.4481151,118520.0,118510.0,1.61233879]
[1753032173519,0.4481151,118520.0,118510.0,1.63510648]
[1753032174109,0.4481151,118520.0,118510.0,1.61233879]
[1753032174309,0.4481151,118520.0,118510.0,1.63510588]
[1753032174613,0.4481151,118520.0,118510.0,1.63490654]
[1753032175818,0.4481151,118520.0,118510.0,1.63490634]
[1753032176118,0.73762174,118520.0,118510.0,1.10541874]
[1753032176318,0.73762174,118520.0,118510.0,1.46621874]
[1753032176519,0.73762174,118520.0,118510.0,0.86457874]
[1753032176818,0.73762174,118520.0,118510.0,1.46601874]
[1753032177421,0.73762174,118520.0,118510.0,1.3044521]
[1753032177617,0.73762174,118520.0,118510.0,1.46601874]
[1753032178425,0.73762174,118520.0,118510.0,0.86457874]
[1753032178625,0.73762174,118520.0,118510.0,1.46589874]
[1753032180124,0.5760551,118520.0,118510.0,1.46589874]
[1753032180324,0.73762174,118520.0,118510.0,1.46589874]
[1753032181623,0.73762174,118520.0,118510.0,0.6729821]
[1753032181822,0.89918838,118520.0,118510.0,0.28181646]
[1753032182027,1.25998838,118520.0,118510.0,0.83492646]
[1753032183341,1.25998838,118520.0,118510.0,0.81215871]
[1753032184130,1.25998838,118520.0,118510.0,0.21099871]
[1753032184330,1.25998838,118520.0,118510.0,0.81203871]
[1753032185040,1.25998838,118520.0,118510.0,0.83480646]
[1753032185838,1.25998838,118520.0,118510.0,0.81203871]
[1753032186036,1.25998838,118520.0,118510.0,0.83480646]
[1753032186340,1.25998838,118520.0,118510.0,0.81203871]
[1753032187442,1.32743754,118520.0,118510.0,0.81203871]
[1753032187844,1.32743754,118520.0,118510.0,0.21099871]
[1753032198855,1.34625452,118520.0,118510.0,0.21099871]
[1753032199351,0.4830217,118500.0,118490.0,0.04805]
[1753032199545,1.2870236,118500.0,118480.0,0.01711873]
[1753032199744,0.64460254,118490.0,118480.0,0.01711873]
[1753032199953,0.87460254,118490.0,118480.0,0.61727873]
[1753032200749,0.87460254,118490.0,118480.0,0.60016]
[1753032201057,0.7130359,118490.0,118480.0,0.60016]
[1753032201249,0.88762327,118490.0,118480.0,0.60016]
[1753032201852,0.2933802,118480.0,118470.0,0.37397]
[1753032202058,0.90461684,118480.0,118470.0,1.17061664]
[1753032202253,0.90461684,118480.0,118470.0,0.64825]
[1753032202254,0.7618095,118480.0,118470.0,0.64825]
[1753032202555,0.92337614,118480.0,118470.0,0.64825]
[1753032202755,1.08494278,118480.0,118470.0,0.64825]
[1753032203350,0.92337614,118480.0,118470.0,0.64825]
[1753032203549,0.92337614,118480.0,118470.0,0.857519]
[1753032204759,0.92337614,118480.0,118470.0,0.858519]
[1753032205057,0.92337614,118480.0,118470.0,0.88124672]
[1753032206360,0.92537614,118480.0,118470.0,0.88524672]
[1753032206950,1.08694278,118480.0,118470.0,0.88524672]
[1753032208363,0.7638095,118480.0,118470.0,1.04681336]
[1753032208663,0.92537614,118480.0,118470.0,1.04681336]
[1753032209660,0.92537614,118480.0,118470.0,1.24604672]
[1753032209865,0.92537614,118480.0,118470.0,0.88524672]
[1753032211460,1.44774278,118480.0,118470.0,0.88468672]
[1753032212264,1.44774278,118480.0,118470.0,0.861959]
[1753032215260,1.44774278,118480.0,118470.0,0.214269]
[1753032215462,1.44774278,118480.0,118470.0,0.813829]
[1753032217169,1.44774278,118480.0,118470.0,0.214269]
[1753032217769,1.44774278,118480.0,118470.0,0.813669]
[1753032219668,1.44774278,118480.0,118470.0,0.214269]
[1753032221966,0.4730144,118470.0,118460.0,0.03170772]
[1753032222274,1.40694768,118470.0,118460.0,0.03170772]
[1753032223574,1.40894768,118470.0,118460.0,0.03670772]
[1753032224073,1.24638104,118470.0,118460.0,0.03570772]
[1753032224375,1.84558104,118470.0,118460.0,0.03570772]
[1753032225175,1.84558104,118470.0,118460.0,0.223249]
[1753032225973,2.00814768,118470.0,118460.0,0.222249]
[1753032226275,2.00814768,118470.0,118460.0,0.24497672]
[1753032226774,1.84658104,118470.0,118460.0,0.24497672]
[1753032227172,1.84658104,118470.0,118460.0,0.24297672]
[1753032227367,2.00814768,118470.0,118460.0,0.24297672]
[1753032228773,1.6850144,118470.0,118460.0,0.24297672]
[1753032228981,1.84658104,118470.0,118460.0,0.24297672]
[1753032229178,1.84658104,118470.0,118460.0,0.220249]
[1753032229781,2.00814768,118470.0,118460.0,0.220249]
[1753032231383,1.40894768,118470.0,118460.0,0.220249]
[1753032231583,2.00782768,118470.0,118460.0,0.220249]
[1753032232475,1.6846944,118470.0,118460.0,0.220249]
[1753032232682,2.00782768,118470.0,118460.0,0.220249]
[1753032233589,1.84626104,118470.0,118460.0,0.220249]
[1753032234777,2.00782768,118470.0,118460.0,0.220249]
[1753032236088,1.40894768,118470.0,118460.0,0.220249]
[1753032236280,2.00758768,118470.0,118460.0,0.220249]
[1753032240188,1.40894768,118470.0,118460.0,0.220249]
[1753032240385,2.00746768,118470.0,118460.0,0.220249]
[1753032240581,1.84586104,118470.0,118460.0,0.220249]
[1753032241187,2.00742768,118470.0,118460.0,0.220249]
[1753032241390,1.81183104,118470.0,118460.0,0.220249]
[1753032241586,1.83616104,118470.0,118460.0,0.220249]
[1753032242786,1.99772768,118470.0,118460.0,0.220249]
[1753032244891,1.97339768,118470.0,118460.0,0.220249]
[1753032245079,1.99772768,118470.0,118460.0,0.220249]
[1753032252597,1.39924768,118470.0,118460.0,0.220249]
[1753032254386,1.0761144,118470.0,118460.0,0.220249]
[1753032254591,1.39924768,118470.0,118460.0,0.220249]
[1753032264404,1.0761144,118470.0,118460.0,0.220249]
[1753032264608,1.39924768,118470.0,118460.0,0.220249]
[1753032266096,1.39924768,118470.0,118460.0,0.1587124]
[1753032269003,1.0761144,118470.0,118460.0,0.1587124]
[1753032269298,1.39924768,118470.0,118460.0,0.1587124]
[1753032278115,1.99616768,118470.0,118460.0,0.1587124]
[1753032283313,1.99592768,118470.0,118460.0,0.1587124]
[1753032285109,2.05641244,118470.0,118460.0,0.1587124]
[1753032288719,1.99592768,118470.0,118460.0,0.1587124]
[1753032291820,0.4877125,118450.0,118440.0,1.24211209]
[1753032292026,0.91927914,118450.0,118440.0,1.24211209]
[1753032293028,0.91927914,118450.0,118440.0,1.24311209]
[1753032293224,0.92127914,118450.0,118440.0,1.24311209]
[1753032293825,0.92127914,118450.0,118440.0,1.08154545]
[1753032294020,0.92127914,118450.0,118440.0,1.24311209]
[1753032294825,0.92127914,118450.0,118440.0,1.45238109]
[1753032295124,0.92127914,118450.0,118440.0,1.50554022]
[1753032295331,0.92127914,118450.0,118440.0,1.50454022]
[1753032295928,0.92127914,118450.0,118440.0,1.47417458]
[1753032296731,0.9332204,118450.0,118440.0,1.47417458]
[1753032297230,0.9332204,118450.0,118440.0,1.31260794]
[1753032297728,0.9332204,118450.0,118440.0,1.47417458]
[1753032297933,0.9332204,118450.0,118440.0,1.50458179]
[1753032298729,0.9332204,118450.0,118440.0,1.47417458]
[1753032298928,0.92127914,118450.0,118440.0,1.14378175]
[1753032300132,0.92127914,118450.0,118440.0,1.50458175]
[1753032301835,0.92127914,118450.0,118440.0,1.50420458]
[1753032302633,0.92127914,118450.0,118440.0,1.53461212]
[1753032302833,0.92127914,118450.0,118440.0,1.50420458]
[1753032303833,0.92127914,118450.0,118440.0,1.50220458]
[1753032304033,0.92127914,118450.0,118440.0,1.47217458]
[1753032304528,0.92127914,118450.0,118440.0,1.29565294]
[1753032304733,0.92127914,118450.0,118440.0,1.3260611]
[1753032305234,0.92127914,118450.0,118440.0,1.29565294]
[1753032305429,0.92127914,118450.0,118440.0,0.93485294]
[1753032305929,0.92127914,118450.0,118440.0,1.09641958]
[1753032306431,0.92127914,118450.0,118440.0,0.93485294]
[1753032306621,0.92127914,118450.0,118440.0,1.09641958]
[1753032307022,0.92127914,118450.0,118440.0,1.29565294]
[1753032307230,0.92127914,118450.0,118440.0,1.09641958]
[1753032307430,0.92127914,118450.0,118440.0,1.45721958]
[1753032307630,0.92127914,118450.0,118440.0,1.09641958]
[1753032307935,0.92127914,118450.0,118440.0,1.45721958]
[1753032309339,0.92127914,118450.0,118440.0,1.09641958]
[1753032310238,0.92127914,118450.0,118440.0,0.93485294]
[1753032310437,0.92127914,118450.0,118440.0,1.45721958]
[1753032310638,0.92127914,118450.0,118440.0,0.93485294]
[1753032310935,0.92127914,118450.0,118440.0,1.45721958]
[1753032311638,0.92127914,118450.0,118440.0,1.29565294]
[1753032312040,0.92127914,118450.0,118440.0,1.27206294]
[1753032312736,0.92127914,118450.0,118440.0,1.43362958]
[1753032312936,0.92127914,118450.0,118440.0,1.45653958]
[1753032313139,0.92127914,118450.0,118440.0,1.09573958]
[1753032313934,0.92127914,118450.0,118440.0,0.93417294]
[1753032314135,0.92127914,118450.0,118440.0,1.09573958]
[1753032314540,0.92127914,118450.0,118440.0,0.49941958]
[1753032314741,0.92127914,118450.0,118440.0,1.09477958]
[1753032315340,0.92127914,118450.0,118440.0,0.49941958]
[1753032315542,0.92127914,118450.0,118440.0,1.09473958]
[1753032315941,0.92127914,118450.0,118440.0,1.45553958]
[1753032316541,0.92127914,118450.0,118440.0,1.09473958]
[1753032318042,0.92127914,118450.0,118440.0,0.49941958]
[1753032318239,0.92127914,118450.0,118440.0,1.09461958]
[1753032319038,0.7597125,118450.0,118440.0,1.45541958]
[1753032319238,0.92127914,118450.0,118440.0,1.45541958]
[1753032319440,0.92127914,118450.0,118440.0,1.48544958]
[1753032320142,0.7597125,118450.0,118440.0,1.48544958]
[1753032320340,0.92127914,118450.0,118440.0,1.48544958]
[1753032320643,0.7597125,118450.0,118440.0,1.48544958]
[1753032320843,0.92127914,118450.0,118440.0,1.48544958]
[1753032321339,0.4407725,118450.0,118440.0,1.93180572]
[1753032321540,0.4407725,118450.0,118440.0,2.13023908]
[1753032322839,0.4407725,118450.0,118440.0,2.19079321]
[1753032324651,0.272,118450.0,118440.0,2.19079321]
[1753032325134,0.4407727,118450.0,118440.0,2.29909508]
[1753032325337,0.272,118450.0,118440.0,2.46066172]
[1753032325536,0.23877,118450.0,118440.0,2.46066172]
[1753032325742,0.21697,118450.0,118440.0,2.46066172]
[1753032326146,0.21697,118450.0,118440.0,2.52121585]
[1753032328647,0.21697,118450.0,118440.0,2.46066172]
[1753032328944,0.21697,118450.0,118440.0,2.52136003]
[1753032329343,0.79094192,118470.0,118460.0,0.1687584]
[1753032329540,0.65094192,118470.0,118460.0,2.20410691]
[1753032330042,0.65094192,118470.0,118460.0,2.21533709]
[1753032330242,0.65094192,118470.0,118460.0,2.37909295]
[1753032330444,0.65094192,118470.0,118460.0,2.42460609]
[1753032330644,0.65294192,118470.0,118460.0,2.42460609]
[1753032331050,0.62981192,118470.0,118460.0,2.42460609]
[1753032331248,0.29087012,118470.0,118460.0,2.42460609]
[1753032331451,0.29087012,118470.0,118460.0,2.394264]
[1753032331746,0.29087012,118470.0,118460.0,2.685864]
[1753032331747,0.29387012,118470.0,118460.0,2.685864]
[1753032331953,0.275,118470.0,118460.0,3.01625464]
[1753032332156,0.274,118470.0,118460.0,3.01625464]
[1753032332451,0.274,118470.0,118460.0,2.854688]
[1753032333156,0.272,118470.0,118460.0,2.88600405]
[1753032333454,0.6109342,118470.0,118460.0,2.94600405]
[1753032334148,0.6109342,118470.0,118460.0,2.57600405]
[1753032334348,0.6109342,118470.0,118460.0,2.90600405]
[1753032335249,0.6109342,118470.0,118460.0,2.85290608]
[1753032335857,0.6109342,118470.0,118460.0,2.83017486]
[1753032336650,0.7443442,118470.0,118460.0,2.06659086]
[1753032336864,0.91767084,118470.0,118460.0,1.55379404]
[1753032337160,0.91767084,118470.0,118460.0,1.526189]
[1753032337161,0.93665527,118470.0,118460.0,1.526189]
[1753032337655,0.93665527,118470.0,118460.0,1.68775564]
[1753032337964,0.93665527,118470.0,118460.0,1.710487]
[1753032338259,0.93665527,118470.0,118460.0,1.71048644]
[1753032338446,0.93665527,118470.0,118460.0,1.87924484]
[1753032339156,0.77508863,118470.0,118460.0,1.7176782]
[1753032339460,0.77508863,118470.0,118460.0,1.5489198]
[1753032340657,0.77508863,118470.0,118460.0,1.526189]
[1753032340954,0.77508863,118470.0,118460.0,1.57922828]
[1753032342553,0.99068934,118470.0,118460.0,1.1881198]
[1753032343359,1.35148934,118470.0,118460.0,0.210269]
[1753032343753,1.34948934,118470.0,118460.0,0.803309]
[1753032343955,1.35248934,118470.0,118460.0,0.803309]
[1753032344652,1.35148934,118470.0,118460.0,0.803309]
[1753032344852,1.35348934,118470.0,118460.0,0.803309]
[1753032345053,1.35448934,118470.0,118460.0,0.803309]
[1753032345255,1.35448934,118470.0,118460.0,0.83361748]
[1753032347559,1.35448934,118470.0,118460.0,0.85636066]
[1753032348056,1.35448934,118470.0,118460.0,0.26232066]
[1753032352366,1.35448934,118470.0,118460.0,0.16855926]
[1753032355163,1.35448934,118470.0,118460.0,0.13825078]
[1753032355955,1.35448934,118470.0,118460.0,0.1155076]
[1753032356462,1.35448934,118470.0,118440.0,0.95456]
[1753032356463,0.2831927,118450.0,118440.0,0.95456]
[1753032356761,0.97192341,118450.0,118440.0,0.95456]
[1753032357554,0.97392341,118450.0,118440.0,0.95456]
[1753032357757,0.7583227,118450.0,118440.0,0.59376]
[1753032357956,0.97392341,118450.0,118440.0,0.59376]
[1753032358662,0.97392341,118450.0,118440.0,0.59476]
[1753032359562,0.97392341,118450.0,118440.0,0.804029]
[1753032359762,0.98551838,118450.0,118440.0,0.804029]
[1753032360764,0.98551838,118450.0,118440.0,0.82680187]
[1753032364262,0.98551838,118450.0,118440.0,1.18760187]
[1753032364462,0.98551838,118450.0,118440.0,0.82680187]
[1753032366767,0.76991767,118450.0,118440.0,0.82680187]
[1753032366966,0.98551838,118450.0,118440.0,0.82680187]
[1753032367465,0.98551838,118450.0,118440.0,0.804029]
[1753032371273,0.93167958,118450.0,118440.0,0.96579091]
[1753032371674,0.76991767,118450.0,118440.0,0.96579091]
[1753032371871,0.93167958,118450.0,118440.0,0.96579091]
[1753032372167,0.76991767,118450.0,118440.0,0.96579091]
[1753032372568,0.93167958,118450.0,118440.0,0.96579091]
[1753032373371,0.93167958,118450.0,118440.0,1.32659091]
[1753032373576,0.93167958,118450.0,118440.0,1.34936378]
[1753032373776,0.93167958,118450.0,118440.0,1.32659091]
[1753032374374,0.92008461,118450.0,118440.0,1.32659091]
[1753032374681,0.92008461,118450.0,118440.0,1.34936378]
[1753032374976,0.92008461,118450.0,118440.0,1.50912569]
[1753032375169,0.92008461,118450.0,118440.0,1.48635282]
[1753032376481,0.92008461,118450.0,118440.0,1.32459091]
[1753032376979,0.92008461,118450.0,118440.0,1.48635282]
[1753032377778,0.92008461,118450.0,118440.0,1.32459091]
[1753032380483,0.9307753,118450.0,118440.0,1.32459091]
[1753032380788,0.92008461,118450.0,118440.0,1.32459091]
[1753032383290,0.93071612,118450.0,118440.0,1.32459091]
[1753032383487,0.92008461,118450.0,118440.0,1.32459091]
[1753032385279,0.92008461,118450.0,118440.0,1.34736378]
[1753032385991,0.93071827,118450.0,118440.0,1.34736378]
[1753032386191,0.76895636,118450.0,118440.0,1.34736378]
[1753032386390,0.93071827,118450.0,118440.0,1.34736378]
[1753032387390,0.93071827,118450.0,118440.0,1.18560187]
[1753032387591,0.93071827,118450.0,118440.0,1.34736378]
[1753032388088,0.93071827,118450.0,118440.0,1.3777276]
[1753032389191,0.93071827,118450.0,118440.0,1.35495473]
[1753032390597,0.7583227,118450.0,118440.0,1.51671664]
[1753032390794,0.92008461,118450.0,118440.0,1.51671664]
[1753032391196,0.7583227,118450.0,118440.0,1.51671664]
[1753032392594,0.7583227,118450.0,118440.0,1.35495473]
[1753032392796,0.92008461,118450.0,118440.0,1.35495473]
[1753032394098,0.93069592,118450.0,118440.0,1.35495473]
[1753032394600,0.93069592,118450.0,118440.0,0.76319473]
[1753032394800,0.93069592,118450.0,118440.0,1.35547473]
[1753032394995,0.93069592,118450.0,118440.0,1.19371282]
[1753032395199,0.93069592,118450.0,118440.0,1.40102047]
[1753032395598,0.93069592,118450.0,118440.0,0.80874047]
[1753032395800,0.93069592,118450.0,118440.0,1.40094047]
[1753032396400,0.93069592,118450.0,118440.0,1.35539473]
[1753032396599,0.93069592,118450.0,118440.0,1.40094047]
[1753032398004,0.93069592,118450.0,118440.0,1.19363282]
[1753032398208,0.93069592,118450.0,118440.0,1.23917856]
[1753032398504,0.93069592,118450.0,118440.0,1.35539473]
[1753032398698,0.93069592,118450.0,118440.0,1.19363282]
[1753032398904,0.93069592,118450.0,118440.0,1.35539473]
[1753032399506,0.93069592,118450.0,118440.0,1.19363282]
[1753032399809,0.94929571,118450.0,118440.0,1.35539473]
[1753032400605,0.94929571,118450.0,118440.0,1.19363282]
[1753032401005,0.94929571,118450.0,118440.0,0.24063282]
[1753032401205,0.94929571,118450.0,118440.0,0.83267282]
[1753032401907,0.7875338,118450.0,118440.0,0.83267282]
[1753032402102,0.94929571,118450.0,118440.0,0.83267282]
[1753032402907,2.06381762,118450.0,118440.0,0.263436]
[1753032403103,2.06381762,118450.0,118440.0,0.83259282]
[1753032403409,2.06381762,118450.0,118440.0,0.8250331]
[1753032403808,2.06381762,118450.0,118440.0,0.2330731]
[1753032404207,2.06481762,118450.0,118440.0,0.2330731]
[1753032404609,2.06481762,118450.0,118440.0,0.2320731]
[1753032404811,2.06681762,118450.0,118440.0,0.2320731]
[1753032405208,2.06681762,118450.0,118440.0,0.209269]
[1753032407509,1.90505571,118450.0,118440.0,0.209269]
[1753032407910,2.06681762,118450.0,118440.0,0.209269]
[1753032409714,2.06653762,118450.0,118440.0,0.209269]
[1753032410116,1.47485762,118450.0,118440.0,0.209269]
[1753032410315,0.95229571,118450.0,118440.0,0.90061781]
[1753032410515,0.77992249,118450.0,118440.0,1.08518382]
[1753032411022,0.9416844,118450.0,118440.0,0.76166]
[1753032411211,0.9416844,118450.0,118440.0,0.5928731]
[1753032411511,0.9416844,118450.0,118440.0,0.75463501]
[1753032411706,0.9522579,118450.0,118440.0,0.75463501]
[1753032411910,0.9522579,118450.0,118440.0,0.39383501]
[1753032412814,0.9522579,118450.0,118440.0,0.2320731]
[1753032413316,1.00620124,118450.0,118440.0,0.2320731]
[1753032413516,1.00620124,118450.0,118440.0,0.209269]
[1753032413820,1.00620124,118450.0,118440.0,0.800829]
[1753032413821,1.36700124,118450.0,118440.0,0.800829]
[1753032414913,1.36700124,118450.0,118440.0,0.209269]
[1753032415313,1.95852124,118450.0,118440.0,0.209269]
[1753032419527,1.36700124,118450.0,118440.0,0.209269]
[1753032419820,1.15129599,118450.0,118440.0,0.209269]
[1753032420008,1.95844124,118450.0,118440.0,0.209269]
[1753032420614,1.74273599,118450.0,118440.0,0.209269]
[1753032420816,1.95844124,118450.0,118440.0,0.209269]
[1753032422120,1.59764124,118450.0,118440.0,0.209269]
[1753032422318,2.34300249,118450.0,118430.0,0.0228041]
[1753032422621,0.485761,118430.0,118420.0,0.03036382]
[1753032422817,0.725761,118430.0,118420.0,0.03036382]
[1753032423123,0.4857753,118420.0,118410.0,1.03954956]
[1753032423311,0.7157753,118420.0,118410.0,1.03954956]
[1753032424223,0.7157753,118420.0,118410.0,1.03754956]
[1753032424417,0.7157753,118420.0,118410.0,1.03954956]
[1753032424617,0.7286114,118420.0,118410.0,1.03954956]
[1753032425216,0.7177753,118420.0,118410.0,0.96564]